{"text_format":"1","workbook":"xlsx","n_sheets":15,"sheets":["Avant de commencer","catégories","Mes idéaux","Mes valeurs","Ma personnalité","Relations aux autres","aller plus loin","Mes préférences","Mes points forts et faibles","Aller plus loin2","Mes motivations","Mes envies ","Pour finir...","Mon bilan","QUESTIONS"],"not_rendered":{"charts":0,"images":20,"macros":1,"external_links":0,"defined_names":12,"comments":0,"pivot_tables":0},"unopened":[],"bounds":{"document_bytes":16777216,"sheet_cells":100000,"rows_first":2000,"rows_last":500,"rows_between":2000,"halvings":0,"cell_chars":16384,"cell_head_chars":4096},"cells_cut":0,"cells_raw":0,"read":"whole","date_system":"1900"}

{"sheet":"Avant de commencer","index":0,"n_rows":0,"n_cols":0,"rows_kept":0,"cut":false,"hidden":false,"merged":[]}

{"sheet":"catégories","index":1,"n_rows":0,"n_cols":0,"rows_kept":0,"cut":false,"hidden":false,"merged":[]}

{"sheet":"Mes idéaux","index":2,"n_rows":0,"n_cols":0,"rows_kept":0,"cut":false,"hidden":false,"merged":[[6,4,10,7],[12,4,15,7],[17,4,21,7]]}

{"sheet":"Mes valeurs","index":3,"n_rows":36,"n_cols":4,"rows_kept":36,"cut":false,"hidden":false,"merged":[]}
[]
[]
[]
[]
[]
[]
[]
[]
[]
[]
[]
[]
[]
[]
[]
[]
[]
[]
[]
[]
[]
[]
[]
[]
[null,null,null,"Proposition n°1"]
[]
[null,null,null,"Proposition n°2 "]
[]
[null,null,null,"Proposition n°3"]
[]
[]
[null,null,null,"Proposition n°1"]
[]
[null,null,null,"Proposition n°2 "]
[]
[null,null,null,"Proposition n°3"]

{"sheet":"Ma personnalité","index":4,"n_rows":106,"n_cols":26,"rows_kept":106,"cut":false,"hidden":false,"merged":[[15,3,18,5]]}
[]
[]
[]
[]
[]
[]
[]
[]
[]
[]
[]
[]
[]
[]
[]
[]
[]
[]
[]
[]
[]
[]
[]
[]
[]
[]
[]
[]
[]
[]
[]
[]
[]
[]
[]
[]
[]
[]
[]
[]
[]
[]
[]
[]
[]
[]
[]
[]
[]
[]
[]
[]
[]
[]
[]
[]
[]
[]
[]
[]
[]
[]
[]
[]
[]
[]
[]
[]
[]
[]
[]
[]
[]
[]
[]
[]
[]
[]
[]
[]
[]
[]
[]
[]
[]
[]
[]
[]
[]
[]
[]
[]
[]
[]
[]
[]
[]
[]
[]
[]
[]
[]
[]
[]
[]
[null,null,null,null,null,null,null,null,null,null,null,null,null,null,null,null,null,null,null,null,null,null,null,null,null," "]

{"sheet":"Relations aux autres","index":5,"n_rows":35,"n_cols":28,"rows_kept":35,"cut":false,"hidden":false,"merged":[[9,3,9,8],[14,3,15,8]]}
[]
[]
[]
[]
[]
[]
[]
[]
[]
[null,null,null,null,null,null,null,null,null,null,"J'entre facilement en relation avec les personnes même quand je ne les connais pas. \n"]
[null,null,null,null,null,null,null,null,null,null,"J'ai besoin d'être en confiance pour entrer en relation \n"]
[]
[]
[]
[]
[]
[]
[]
[]
[]
[]
[]
[]
[]
[]
[]
[null,null,null,null,null,null,null,null,null,null,"Je participe facilement aux conversations autour de moi"]
[null,null,null,null,null,null,null,null,null,null,"En général, j'aimerais y participer mais je n'ose pas trop…"]
[null,null,null,null,null,null,null,null,null,null,"En général, j'ai pas envie d'y participer"]
[]
[]
[]
[]
[]
[null,null,null,null,null,null,null,null,null,null,null,null,null,null,null,null,null,null,null,null,null,null,null,null,null,null,null," "]

{"sheet":"aller plus loin","index":6,"n_rows":0,"n_cols":0,"rows_kept":0,"cut":false,"hidden":false,"merged":[[7,3,8,5],[11,3,12,5]]}

{"sheet":"Mes préférences","index":7,"n_rows":0,"n_cols":0,"rows_kept":0,"cut":false,"hidden":false,"merged":[[9,3,11,5],[14,3,16,5]]}

{"sheet":"Mes points forts et faibles","index":8,"n_rows":0,"n_cols":0,"rows_kept":0,"cut":false,"hidden":false,"merged":[[6,3,9,6],[12,3,15,6]]}

{"sheet":"Aller plus loin2","index":9,"n_rows":0,"n_cols":0,"rows_kept":0,"cut":false,"hidden":false,"merged":[[8,3,11,5],[15,3,18,5]]}

{"sheet":"Mes motivations","index":10,"n_rows":38,"n_cols":10,"rows_kept":38,"cut":false,"hidden":false,"merged":[[12,1,15,5],[35,1,35,6]]}
[]
[]
[]
[]
[]
[]
[]
[]
[]
[]
[]
[]
[]
[]
[]
[]
[]
[]
[]
[]
[]
[]
[]
[]
[]
[]
[]
[]
[]
[]
[]
[]
[]
[]
[null,null,null,null,null,null,null,null,null,""]
[null,"",null,null,null,null,null,null,null,"En général, j'ai besoin de faire pour comprendre.\n"]
[null,null,null,null,null,null,null,null,null,"En général, je n'ai pas besoin que le professeur s'appuie sur des situations concrètes (exemples) pour comprendre.\n"]
[null,null,null,null,null,null,null,null,null,"En général, j'ai besoin que le professeur s'appuie sur des situations concrètes (exemples) pour comprendre \n"]

{"sheet":"Mes envies ","index":11,"n_rows":38,"n_cols":12,"rows_kept":38,"cut":false,"hidden":false,"merged":[[10,1,11,3],[10,6,11,8],[17,7,19,8],[17,4,19,5],[17,1,19,2]]}
[]
[]
[]
[]
[null,null,null,null,null,null,null,null,null,null,null,""]
[null,null,null,null,null,null,null,null,null,null,null,"Activité indépendante (à mon compte)."]
[null,null,null,null,null,null,null,null,null,null,null,"Activité salariée (dans une entreprise)."]
[]
[]
[]
[null,"",null,null,null,null,""]
[]
[]
[]
[]
[null,null,null,null,null,null,null,null,null,null,null,""]
[null,null,null,null,null,null,null,null,null,null,null,"Activité qui ne demande pas beaucoup de déplacements."]
[null,"",null,null,null,null,null,"",null,null,null,"Activité avec beaucoup de déplacements (à l'étranger par exemple)."]
[]
[]
[]
[]
[]
[null,null,null,null,null,null,null,"     "]
[null,null,null,null,null,null,null,null,null,null,null,""]
[null,null,null,null,null,null,null,null,null,null,null,"Travailler en intérieur."]
[null,null,null,null,null,null,null,null,null,null,null,"Travailler en extérieur.\n"]
[]
[]
[]
[]
[null,null,null,null,null,null,null,null,null,null,null,"Travailler en ville."]
[null,null,null,null,null,null,null,null,null,null,null,"Travailler à la campagne."]
[]
[]
[null,null,null,null,null,null,null,null,null,null,null,""]
[null,null,null,null,null,null,null,null,null,null,null,"Travailler en équipe."]
[null,null,null,null,null,null,null,null,null,null,null,"Travailler en solo."]

{"sheet":"Pour finir...","index":12,"n_rows":24,"n_cols":12,"rows_kept":24,"cut":false,"hidden":false,"merged":[[10,1,11,5],[16,1,18,2],[16,4,18,5],[22,1,23,5]]}
[]
[]
[]
[]
[null,null,null,null,null,null,null,null,null,null,null,""]
[null,null,null,null,null,null,null,null,null,null,null,"Un métier où l'on passe des années à étudier avec des résultats incertains mais fondamentaux si on y arrive.\n"]
[null,null,null,null,null,null,null,null,null,null,null,"Un métier où l'on est en action permanente avec des petits résultats mais immédiats.\n"]
[]
[]
[]
[null,"",null,null,null,null,null,null,null,null,null,""]
[null,null,null,null,null,null,null,null,null,null,null,"Un métier intéressant mais peu payé."]
[null,null,null,null,null,null,null,null,null,null,null,"Un métier bien payé mais peu intéressant."]
[]
[]
[]
[null,"",null,null,"",null,null,null,null,null,null,""]
[null,null,null,null,null,null,null,null,null,null,null,"Un métier au service des autres mais peu payé."]
[null,null,null,null,null,null,null,null,null,null,null,"Un métier bien payé quitte à ne pas tenir compte des autres."]
[]
[]
[null,null,null,null,null,null,null,null,null,null,null,""]
[null,"",null,null,null,null,null,null,null,null,null,"Un métier où l'on décide mais avec de forts risques d'échouer."]
[null,null,null,null,null,null,null,null,null,null,null,"Un métier où l'on n'est pas le décideur mais sans risque d'être mis en échec."]

{"sheet":"Mon bilan","index":13,"n_rows":69,"n_cols":4,"rows_kept":69,"cut":false,"hidden":false,"merged":[]}
[]
[null,{"$f":" \"MON BILAN DU \" &DAY(TODAY())&\"/\"&MONTH(TODAY())&\"/\"&YEAR(TODAY())","v":"MON BILAN DU 8/7/2014"}]
[]
[]
[]
[null," "]
[null,{"$f":"\"Dans l'idéal, j'aimerais : \" & IF('Mes idéaux'!E7=\" \",\"non répondu\",'Mes idéaux'!E7)","v":"Dans l'idéal, j'aimerais : "}]
[null,{"$f":"\"Ce qui m'attire dans cet idéal, c'est : \"&IF('Mes idéaux'!E13=\" \",\"non répondu\",'Mes idéaux'!E13)","v":"Ce qui m'attire dans cet idéal, c'est : "}]
[null,{"$f":"\"Pour parler des personnes qui m'ont marqué(e)s/que j'admire : \" & IF('Mes idéaux'!E18=\" \",\"non répondu\",'Mes idéaux'!E18)","v":"Pour parler des personnes qui m'ont marqué(e)s/que j'admire : "}]
[null,{"$f":"\"Pour moi, ce qu'il y a de plus important c'est :  \"&IF(QUESTIONS!J7=0,\" \",QUESTIONS!J7&\", \")&IF(QUESTIONS!J8=0,\" \",QUESTIONS!J8 &\", \")&IF(QUESTIONS!J9=0,\"  \",QUESTIONS!J9& \".\")","v":"Pour moi, ce qu'il y a de plus important c'est :      "}]
[null,{"$f":"\"Les qualités et attitudes qui selon moi sont les plus importants sont :  \"&IF(QUESTIONS!J25=0,\" \",QUESTIONS!J25&\", \")&IF(QUESTIONS!J26=0,\" \",QUESTIONS!J26 &\", \")&IF(QUESTIONS!J27=0,\"  \",QUESTIONS!J27& \".\")","v":{"$error":"#REF!"}}]
[]
[]
[]
[]
[]
[]
[null,{"$f":"\"Je suis plutôt \"&QUESTIONS!J43&\", \"&QUESTIONS!J46&\" et \"&QUESTIONS!J48&\"\"","v":"Je suis plutôt  ,   et  "}]
[null,{"$f":"QUESTIONS!J45&\". \"&QUESTIONS!J47&\". \"&QUESTIONS!J44","v":" .  .  "}]
[]
[null,{"$f":"\"Mes principaux défauts et qualités sont : \" &(IF('Ma personnalité'!D16=\"\",\"non répondu\",'Ma personnalité'!D16))","v":"Mes principaux défauts et qualités sont : non répondu"}]
[]
[null,{"$f":"\"En dehors du collège/lycée j'aime : \"&IF('Mes préférences'!D10=\"\",\"non répondu\",'Mes préférences'!D10)&\".\"","v":"En dehors du collège/lycée j'aime : non répondu."},null,""]
[null,{"$f":"\"Ce que ça m'apporte dans la vie c'est :\"&IF('Mes préférences'!D15=\"\",\"non répondu\",'Mes préférences'!D15)&\".\"","v":"Ce que ça m'apporte dans la vie c'est :non répondu."}]
[null,{"$f":"\"En général:\"&IF('Relations aux autres'!D10=\"\",\" non répondu\",'Relations aux autres'!D10)&\".\"","v":"En général: non répondu."}]
[null,{"$f":"\"Lors des discussions: \"&IF('Relations aux autres'!D15=\"\",\" non répondu\",'Relations aux autres'!D15)&\".\"","v":"Lors des discussions:  non répondu."}]
[]
[null,{"$f":"\"Mes parents sont-ils d'accord avec moi? \"&IF('aller plus loin'!D8=\"\",\"non répondu\",'aller plus loin'!D8)","v":"Mes parents sont-ils d'accord avec moi? non répondu"}]
[null,{"$f":"\"Mes amis sont-ils d'accord avec moi? \"&IF('aller plus loin'!D12=\"\",\"non répondu\",'aller plus loin'!D12)","v":"Mes amis sont-ils d'accord avec moi? non répondu"}]
[]
[]
[]
[]
[null,{"$f":"\"Je réussis le mieux dans les disciplines telles que : \"&IF('Mes points forts et faibles'!D7=\"\",\"non répondu\",'Mes points forts et faibles'!D7)","v":"Je réussis le mieux dans les disciplines telles que : non répondu"}]
[null,{"$f":"\"Je réussis moins dans les disciplines telles que : \"&IF('Mes points forts et faibles'!D13=\"\",\"non répondu\",'Mes points forts et faibles'!D13)","v":"Je réussis moins dans les disciplines telles que : non répondu"}]
[null,{"$f":"\"Les disciplines où je réussis et qui ne me plaisent pourtant pas sont : \"& IF('Aller plus loin2'!D9=\"\",\"non répondu\",'Aller plus loin2'!D9)","v":"Les disciplines où je réussis et qui ne me plaisent pourtant pas sont : non répondu"}]
[null,{"$f":"\"Les disciplines où je ne réussis pas mais qui me plaisent quand même sont : \"& IF('Aller plus loin2'!D16=\"\",\"non répondu\",'Aller plus loin2'!D16)","v":"Les disciplines où je ne réussis pas mais qui me plaisent quand même sont : non répondu"}]
[]
[null,{"$f":"\"Mes motivations au collège/lycée sont : \"&IF(QUESTIONS!J65=0,\"...\",QUESTIONS!J65&\", \")&IF(QUESTIONS!J66=0,\"...\",QUESTIONS!J66&\", \")&IF(QUESTIONS!J67=0,\"... \",QUESTIONS!J67&\".\"&IF(QUESTIONS!J68=0,\"… \",QUESTIONS!J68))","v":"Mes motivations au collège/lycée sont : ......... "}]
[null,{"$f":"\"Autres raisons: \"& IF('Mes motivations'!B13 = \" \", \" \",'Mes motivations'!B13)","v":"Autres raisons: "}]
[null,{"$f":"\"J'apprends mieux :  \"&IF(QUESTIONS!J74=0,\"… \",QUESTIONS!J74)&\", \"&IF(QUESTIONS!J75=0,\"…\",QUESTIONS!J75)&\", \"&IF(QUESTIONS!J76=0,\"…\",QUESTIONS!J76)&\"… \"& \", \" &IF(QUESTIONS!J77=0,\"… \",QUESTIONS!J77)&\".\"","v":"J'apprends mieux :  … , …, …… , … ."}]
[]
[null,{"$f":"\"J'apprends mieux :  \"&IF(QUESTIONS!J82=0,\"… \",QUESTIONS!J82)&\", \"&IF(QUESTIONS!J83=0,\"…\",QUESTIONS!J83)&\", \"&IF(QUESTIONS!J84=0,\"…\",QUESTIONS!J84)&\"… \"& \", \" &IF(QUESTIONS!J85=0,\"… \",QUESTIONS!J85)&\".\"","v":"J'apprends mieux :  … , …, …… , … ."}]
[]
[null,{"$f":"\"Pour mémoriser j'ai besoin :  \"&IF(QUESTIONS!J90=0,\"… \",QUESTIONS!J90)&\", \"&IF(QUESTIONS!J91=0,\"…\",QUESTIONS!J91)&\", \"&IF(QUESTIONS!J92=0,\"…\",QUESTIONS!J92)&\"… \"& \", \" &IF(QUESTIONS!J93=0,\"… \",QUESTIONS!J93)&\".\"","v":"Pour mémoriser j'ai besoin :  … , …, …… , … ."}]
[]
[null,{"$f":"'Mes motivations'!B36","v":""}]
[]
[]
[]
[]
[]
[]
[null,{"$f":"\"Je préfèrerais avoir une: \"& IF('Mes envies '!B11 = \" \", \" \",'Mes envies '!B11)","v":"Je préfèrerais avoir une: "}]
[null,{"$f":"\"Et je préfèrerais également avoir une: \"& IF('Mes envies '!G11 = \" \", \" \",'Mes envies '!G11)","v":"Et je préfèrerais également avoir une: "}]
[null,"J'aimerais:"]
[null,{"$f":"\"- \"& IF('Mes envies '!B18 = \" \", \" \",'Mes envies '!B18)","v":"- "}]
[null,{"$f":"\"- \"& IF('Mes envies '!E18 = \" \", \" \",'Mes envies '!E18)","v":"- "}]
[null,{"$f":"\"- \"& IF('Mes envies '!H18 = \" \", \" \",'Mes envies '!H18)","v":"- "}]
[]
[]
[]
[null,null,null,{"$f":"'Pour finir...'!B11","v":""}]
[null,null,null,{"$f":"'Pour finir...'!B17","v":""}]
[null,"Je préfèrerais : ",null,{"$f":"'Pour finir...'!E17","v":""}]
[null,{"$f":"\"- \"& IF('Pour finir...'!B11=\" \",\" \",'Pour finir...'!B11)","v":"- "},null,{"$f":"'Pour finir...'!B23","v":""}]
[null,{"$f":"\"- \"& IF('Pour finir...'!B17=\"\",\"\",'Pour finir...'!B17)","v":"- "}]
[null,{"$f":"\"- \"& IF('Pour finir...'!E17=\"\",\"\",'Pour finir...'!E17)","v":"- "}]
[null,{"$f":"\"- \"& IF('Pour finir...'!B23=\"\",\"\",'Pour finir...'!B23)","v":"- "}]

{"sheet":"QUESTIONS","index":14,"n_rows":158,"n_cols":10,"rows_kept":158,"cut":false,"hidden":true,"merged":[[1,0,39,0],[2,1,22,1],[23,1,40,1],[99,0,103,0],[105,0,108,0],[42,0,55,0],[42,1,48,1],[50,1,52,1],[54,1,55,1],[57,0,97,0],[57,1,58,1],[60,1,61,1],[63,1,97,1]]}
["Catégorie","Sous catégorie","N°Questions ","Titre","Type de question (Ouverte/choix Multiple/Choix Unique OMU)","Références page/cellule","Référence Réponse","Elements ","Cellule lié","Formule index "]
["Rêves/modèles/Valeurs"]
[null,"Idéaux",1,"Mes rêves et idéaux ","O","F7"]
[null,null,2,"Ce qui m'attire","O","F12"]
[null,null,3,"Mes rencontres","O","F17"]
[null,null,4,"Items les plus importants ","M","Zone de liste 13"]
[null,null,null,null,null,null,null,"Etre le premier dans mon domaine",1,{"$f":"INDEX(QUESTIONS!H6:H23,QUESTIONS!I7)","v":0}]
[null,null,null,null,null,null,null,"Me sentir en sécurité",1,{"$f":"INDEX(QUESTIONS!H6:H23,QUESTIONS!I8)","v":0}]
[null,null,null,null,null,null,null,"Réussir ma vie professionnelle avant tout",1,{"$f":"INDEX(QUESTIONS!H6:H23,QUESTIONS!I9)","v":0}]
[null,null,null,null,null,null,null,"Vivre en harmonie avec la nature"]
[null,null,null,null,null,null,null,"Obtenir le bien être matériel (voiture, maison, vacances…)"]
[null,null,null,null,null,null,null,"Aller au bout de mes engagements (humanitaires, religieux, politiques…)"]
[null,null,null,null,null,null,null,"Avoir une position prestigieuse "]
[null,null,null,null,null,null,null,"Avoir exploré de nombreux domaines"]
[null,null,null,null,null,null,null,"bien maitriser un domaine particulier"]
[null,null,null,null,null,null,null,"Etre utile aux autres"]
[null,null,null,null,null,null,null,"Réaliser mes passions (artistiques, sportives….)"]
[null,null,null,null,null,null,null,"Susciter l’admiration des autres"]
[null,null,null,null,null,null,null,"Etre reconnu pour mon intelligence "]
[null,null,null,null,null,null,null,"Faire passer l’équilibre familial avant tout"]
[null,null,null,null,null,null,null,"Obtenir une réussite financière"]
[null,null,null,null,null,null,null,"Etre indépendant, n’avoir besoin de personne"]
[null,null,null,null,null,null,null,"Etre reconnu par mon environnement proche"]
[null,true,null,null,null,null,null,null,1]
[null,null,5,"Attitudes qualités les plus importants","M","Zone de liste 11",null,"Etre audacieux(se)",18,{"$f":"INDEX(QUESTIONS!H25:H41,QUESTIONS!I25)","v":{"$error":"#REF!"}}]
[null,false,null,null,null,null,null,"Etre ouvert aux différences",18,{"$f":"INDEX(QUESTIONS!H25:H41,QUESTIONS!I26)","v":{"$error":"#REF!"}}]
[null,false,null,null,null,null,null,"Etre organisé(e)",18,{"$f":"INDEX(QUESTIONS!H25:H41,QUESTIONS!I27)","v":{"$error":"#REF!"}}]
[null,false,null,null,null,null,null,"Faire preuve de débrouillardise"]
[null,true,null,null,null,null,null,"Savoir obtenir des autres ce que l’on veut "]
[null,null,null,null,null,null,null,"Etre attentionné aux plus faibles "]
[null,null,null,null,null,null,null,"Etre intuitif "]
[null,null,null,null,null,null,null,"Savoir saisir sa chance "]
[null,null,null,null,null,null,null,"Savoir faire équipe "]
[null,null,null,null,null,null,null,"Etre attentif à son confort et celui des siens"]
[null,null,null,null,null,null,null,"Etre créatif "]
[null,null,null,null,null,null,null,"Etre intelligent"]
[null,null,null,null,null,null,null,"Avoir le sens de l’initiative"]
[null,null,null,null,null,null,null,"Etre solidaire, être disponible aux autres "]
[null,null,null,null,null,null,null,"Etre ambitieux "]
[null,null,null,null,null,null,null,"Etre sensible à la justice"]
[null,null,null,null,null,null,null,"Ne pas avoir peur de prendre des risques"]
[]
["Ma personnalité mes gouts","Ma personnalité ",6,"Les propositions les plus adéquats","M","Zone de groupe 49",null,null,false,{"$f":"IF( I43=TRUE, \"patiente\", \" \")","v":" "}]
[null,null,null,null,null,null,null,null,false,{"$f":"IF( I44=TRUE, \"Je m'énerve facilement\", \" \")","v":" "}]
[null,null,null,null,null,null,null,null,false,{"$f":"IF( I45=TRUE, \"J'attends souvent des résultats immédiats à mes actions\", \" \")","v":" "}]
[null,null,null,null,null,null,null,null,false,{"$f":"IF( I46=TRUE, \"calme\", \" \")","v":" "}]
[null,null,null,null,null,null,null,null,false,{"$f":"IF( I47=TRUE, \"En général, j'arrive à me controler\", \" \")","v":" "}]
[null,null,null,null,null,null,null,null,false,{"$f":"IF( I48=TRUE, \"j'ai toujours besoin d'action.\", \" \")","v":" "}]
[null,null,7,"Qualités défauts","O","ma personnalité mes gout G17"]
[]
[null,"Mes relations aux autres ",8,"Quand je rencontre quelqu'un","U","Zone de groupe 47",null,null,1,{"$f":"IF(I51=1, \"j'entre facilement en relation avec les autres\", \"j'ai besoin d'être en confiance pour entrer en relation avec les autres\" )","v":"j'entre facilement en relation avec les autres"}]
[]
[null,null,9,"Lors des discussions","U ","Zone de groupe 48"]
[null,null,null,null,null,null,null,null,1,{"$f":"IF(I54=1,\"Je participe aisément aux discussions autour de moi.\",IF(I54=2,\"Souvent je n'ose pas participer aux discussions autour de moi.\",\" La plupart du temps, je n'ai pas envie de participer aux discussions autour de moi.\"))","v":"Je participe aisément aux discussions autour de moi."}]
[null,"Aller plus loin ",10,"Qu'en pensent les parents ","O","AF69"]
[null,null,11,"Qu'en pensent les amis","O","AF74"]
[]
["Mes points forts et faibles","Au collège/lycée",12,"Les domaines où je réussis le mieux","O","Mes points forts et faibles F8"]
[null,null,13,"Les domaines où je réussis le moins","O","Mes points forts et faibles F16"]
[]
[null,"Aller plus loin",14,"Les domaines que j'aime le plus sont celles ou je réussi ? ","O","G66"]
[null,null,15,"Les domaines que j'aime le moins sont celles ou je rate? ","O","G73"]
[]
[null,"Motivations",16,"Je vais à l'ecole Car…","M/O (autres","Zone de liste 9 AE13(Autres)"]
[null,null,null,null,null,null,null,"Acquérir des connaissances, ",1,{"$f":"INDEX(H64:H71,I65)","v":0}]
[null,null,null,null,null,null,null,"Faire des découvertes, ",1,{"$f":"INDEX(H64:H71,I66)","v":0}]
[null,null,null,null,null,null,null,"Préparer mon avenir professionnel",1,{"$f":"INDEX(H64:H71,I67)","v":0}]
[null,null,null,null,null,null,null,"Retrouver mes amis",1,{"$f":"INDEX(H64:H71,I68)","v":0}]
[null,null,null,null,null,null,null,"Obtenir de bonnes notes "]
[null,null,null,null,null,null,null,"Mieux comprendre le monde"]
[null,null,null,null,null,null,null,"Aucune, c’est obligatoire !"]
[]
[null,null,17,"J'apprend le mieux","M  ","Zone de liste 14"]
[null,null,null,null,null,null,null,"A la maison",1,{"$f":"INDEX(H73:H79,I74)","v":0}]
[null,null,null,null,null,null,null,"En salle d'études/de permanence",1,{"$f":"INDEX(H73:H79,I75)","v":0}]
[null,null,null,null,null,null,null,"Au CDI",1,{"$f":"INDEX(H73:H79,I76)","v":0}]
[null,null,null,null,null,null,null,"Chez d'autres membres de ma famille",1,{"$f":"INDEX(H73:H79,I77)","v":0}]
[null,null,null,null,null,null,null,"Chez des amis"]
[null,null,null,null,null,null,null,"A la bibliothèque/Médiathèque"]
[]
[null,null,18,"J'apprend le mieux","M","Zone de liste 16"]
[null,null,null,null,null,null,null,"Seul(e) en silence",1,{"$f":"INDEX($H$81:$H$87,I82)","v":0}]
[null,null,null,null,null,null,null,"Seul(e) en écoutant de la musique",1,{"$f":"INDEX($H$81:$H$87,I83)","v":0}]
[null,null,null,null,null,null,null,"Avec un(e) ami ( e )",1,{"$f":"INDEX($H$81:$H$87,I84)","v":0}]
[null,null,null,null,null,null,null,"En groupe",1,0]
[null,null,null,null,null,null,null,"Avec mes parents"]
[null,null,null,null,null,null,null,"Avec d'autres adultes"]
[]
[null,null,19,"Je mémorise","M","Zone de liste 18"]
[null,null,null,null,null,null,null,"De comprendre",1,{"$f":"INDEX($H$89:$H$96,I90)","v":0}]
[null,null,null,null,null,null,null,"De mettre en pratique",1,{"$f":"INDEX($H$89:$H$96,I91)","v":0}]
[null,null,null,null,null,null,null,"De réciter à haute voix,",1,{"$f":"INDEX($H$89:$H$96,I92)","v":0}]
[null,null,null,null,null,null,null,"De me mettre en mouvement ",1,0]
[null,null,null,null,null,null,null,"De noter"]
[null,null,null,null,null,null,null,"D’entendre"]
[null,null,null,null,null,null,null,"De lire"]
[]
[null,null,20,"Propositions","U","Groupe 24",null,null,0]
[]
["Mes envie et ambitions ",null,21,"J'aimerai ","U","zone de groupe 48",null,null,0,{"$f":"IF(I100=1,\" en ville\",\" à la campagne\")","v":" à la campagne"}]
[null,null,22,null,null,"zone de groupe 62",null,null,1,{"$f":"IF(I101=1,\"indépendant\",\"salarié\")","v":"indépendant"}]
[null,null,23,null,null,"Zone de groupe 29",null,null,0,{"$f":"IF(I102=1, \"à l'intérieur\", \"à l'extérieur\")","v":"à l'extérieur"}]
[null,null,24,null,null,"Zone de groupe 57",null,null,0,{"$f":"IF(I103=1,\"en équipe\", \"en solo\")","v":"en solo"}]
[null,null,25,null,null,"Zone de groupe 60",null,null,1,{"$f":"IF(I104=1,\"demande des déplacements fréquents.\", \"ne demande pas de déplacement fréquent.\")","v":"demande des déplacements fréquents."}]
[]
["Pour finir ",null,26,"Choisir sans demi mesure","U","Zone de groupe 1",null,null,1,{"$f":"IF(QUESTIONS!I106=1,\"un métier long à aboutir mais avec des résultats fondamentaux\", \"un métier où l'on est en action permanente avec des petits résultats mais immédiats\")","v":"un métier long à aboutir mais avec des résultats fondamentaux"}]
[null,null,27,null,null,"Zone de groupe 4",null,null,1,{"$f":"IF(I107=1,\"je préfèrerais un métier où l'on décide mais avec de forts risques d'échouer \", \" je préfèrerais un métier où l'on ne décide pas mais sans risque d'être mis en échec\")","v":"je préfèrerais un métier où l'on décide mais avec de forts risques d'échouer "}]
[null,null,28,null,null,"Zone de groupe 7",null,null,1,{"$f":"IF(I108=1,\"un métier au service des autres mais peu payé\", \" un métier où l'on ne tient pas compte des autres mais bien payé\")","v":"un métier au service des autres mais peu payé"}]
[null,null,29,null,null,"Zone de groupe 10",null,null,1,{"$f":"IF(I109=1,\"un métier intérrésant mais peu payé\", \" un métier peu intérressant mais bien payé\")","v":"un métier intérrésant mais peu payé"}]
[]
[]
[]
[]
[]
[]
[]
[]
[]
[]
[]
[]
[]
[]
[]
[]
[]
[]
[]
[]
[]
[null,null,"Mes motivations "]
[]
[]
[]
[]
[]
[]
[]
[null,null,"mes modes d'apprentissages","j'apprends le mieux…",null,null,null,"A la maison"]
[null,null,null,null,null,null,null,"En salle d'études/de permanence"]
[null,null,null,null,null,null,null,"Au CDI"]
[null,null,null,null,null,null,null,"Chez d'autres membres de ma famille"]
[null,null,null,null,null,null,null,"Chez des amis"]
[null,null,null,null,null,null,null,"A la bibliothèque/Médiathèque"]
[]
[null,null,null,"J'apprends le mieux : ",null,null,null,"Seul en silence"]
[null,null,null,null,null,null,null,"Deul en écoutant de la musique"]
[null,null,null,null,null,null,null,"Avec un ami"]
[null,null,null,null,null,null,null,"En groupe"]
[null,null,null,null,null,null,null,"Avec mes parents"]
[null,null,null,null,null,null,null,"Avec d'autres adultes"]
[null,null,null,"Pour mémoriser j'ai besoin de",null,null,null,"De comprendre"]
[null,null,null,null,null,null,null,"De mettre en pratique"]
[null,null,null,null,null,null,null,"De réciter à haute voix,"]
[null,null,null,null,null,null,null,"De me mettre en mouvement "]
[null,null,null,null,null,null,null,"De noter"]
[null,null,null,null,null,null,null,"D’entendre"]
[null,null,null,null,null,null,null,"De lire"]